[Event "Schack-SM 2024: Junior-SM"]
[Site "Fortnox Arena, Hejaregatan 5, Vaxjo, Sweden"]
[Date "2024.07.05"]
[Round "7.2"]
[White "Strom-Engdahl, Alexander"]
[Black "Wernberg, Hugo"]
[Result "1/2-1/2"]
[TimeControl "90 minutes for 40 moves + 30 minutes for the rest of the game + 30 seconds per move from move one."]
[BlackTitle "FM"]
[WhiteElo "2191"]
[BlackElo "2208"]

1. e4 {[%clk 01:30:16]} {[%emt 00:00:44]} e5 {[%clk 01:30:28]} {[%emt
00:00:33]} 2. Nf3 {[%clk 01:30:39]} {[%emt 00:00:06]} Nc6 {[%clk 01:30:48]}
{[%emt 00:00:10]} 3. Bc4 {[%clk 01:31:03]} {[%emt 00:00:06]} Nf6 {[%clk
01:30:54]} {[%emt 00:00:25]} 4. d3 {[%clk 01:31:27]} {[%emt 00:00:05]} h6
{[%clk 01:31:09]} {[%emt 00:00:16]} 5. O-O {[%clk 01:30:23]} {[%emt 00:01:33]}
d6 {[%clk 01:31:01]} {[%emt 00:00:39]} 6. a4 {[%clk 01:30:17]} {[%emt
00:00:36]} g6 {[%clk 01:30:55]} {[%emt 00:00:37]} 7. Nc3 {[%clk 01:29:31]}
{[%emt 00:01:15]} Bg7 {[%clk 01:31:01]} {[%emt 00:00:23]} 8. h3 {[%clk
01:25:24]} {[%emt 00:04:38]} O-O {[%clk 01:30:49]} {[%emt 00:00:42]} 9. Be3
{[%clk 01:24:22]} {[%emt 00:01:31]} Ne7 {[%clk 01:29:40]} {[%emt 00:01:39]} 10.
Qd2 {[%clk 01:19:07]} {[%emt 00:05:45]} Kh7 {[%clk 01:29:33]} {[%emt 00:00:37]}
11. Rae1 {[%clk 01:18:58]} {[%emt 00:00:40]} c5 {[%clk 01:29:03]} {[%emt
00:00:59]} 12. Nh2 {[%clk 01:16:44]} {[%emt 00:02:44]} Nh5 {[%clk 01:26:57]}
{[%emt 00:02:37]} 13. g4 {[%clk 01:14:37]} {[%emt 00:02:37]} Nf4 {[%clk
01:26:57]} {[%emt 00:00:29]} 14. Bxf4 {[%clk 01:15:01]} {[%emt 00:00:07]} exf4
{[%clk 01:27:21]} {[%emt 00:00:06]} 15. Qxf4 {[%clk 01:15:24]} {[%emt
00:00:06]} g5 {[%clk 01:26:08]} {[%emt 00:01:44]} 16. Qd2 {[%clk 01:09:27]}
{[%emt 00:06:26]} Ng6 {[%clk 01:25:06]} {[%emt 00:01:33]} 17. Ne2 {[%clk
01:07:57]} {[%emt 00:02:00]} Bd7 {[%clk 01:21:51]} {[%emt 00:03:44]} 18. b3
{[%clk 01:02:36]} {[%emt 00:05:51]} Bc6 {[%clk 01:15:09]} {[%emt 00:07:12]} 19.
f4 {[%clk 00:55:29]} {[%emt 00:07:38]} gxf4 {[%clk 01:13:53]} {[%emt 00:01:46]}
20. Nxf4 {[%clk 00:55:31]} {[%emt 00:00:27]} Qg5 {[%clk 01:13:37]} {[%emt
00:00:46]} 21. Re2 {[%clk 00:51:31]} {[%emt 00:04:31]} Bc3 {[%clk 00:47:39]}
{[%emt 00:26:28]} 22. Qc1 {[%clk 00:44:32]} {[%emt 00:07:29]} f5 {[%clk
00:34:09]} {[%emt 00:14:00]} 23. Ne6 {[%clk 00:40:29]} {[%emt 00:04:33]} Qxc1
{[%clk 00:32:38]} {[%emt 00:02:01]} 24. Rxc1 {[%clk 00:40:36]} {[%emt
00:00:24]} fxe4 {[%clk 00:30:57]} {[%emt 00:02:10]} 25. dxe4 {[%clk 00:35:57]}
{[%emt 00:05:09]} Nf4 {[%clk 00:12:12]} {[%emt 00:19:15]} 26. Nxf4 {[%clk
00:34:50]} {[%emt 00:01:37]} Rxf4 {[%clk 00:12:36]} {[%emt 00:00:06]} 27. Be6
{[%clk 00:24:18]} {[%emt 00:11:02]} Re8 {[%clk 00:09:18]} {[%emt 00:03:49]} 28.
Bf5+ {[%clk 00:23:58]} {[%emt 00:00:49]} Kg7 {[%clk 00:08:38]} {[%emt
00:01:10]} 29. Rf1 {[%clk 00:23:13]} {[%emt 00:01:15]} Bd4+ {[%clk 00:06:25]}
{[%emt 00:02:42]} 30. Kg2 {[%clk 00:23:15]} {[%emt 00:00:29]} Bxe4+ {[%clk
00:06:20]} {[%emt 00:00:36]} 31. Bxe4 {[%clk 00:19:19]} {[%emt 00:04:25]} Rfxe4
{[%clk 00:06:38]} {[%emt 00:00:11]} 32. Rxe4 {[%clk 00:19:35]} {[%emt
00:00:15]} Rxe4 {[%clk 00:07:01]} {[%emt 00:00:07]} 33. Nf3 {[%clk 00:15:09]}
{[%emt 00:04:56]} Re2+ {[%clk 00:06:38]} {[%emt 00:00:53]} 34. Kg3 {[%clk
00:14:17]} {[%emt 00:01:22]} Rxc2 {[%clk 00:06:32]} {[%emt 00:00:37]} 35. Nxd4
{[%clk 00:14:16]} {[%emt 00:00:31]} cxd4 {[%clk 00:06:52]} {[%emt 00:00:10]} 36.
Rd1 {[%clk 00:13:14]} {[%emt 00:01:31]} Rc3+ {[%clk 00:05:58]} {[%emt
00:01:24]} 37. Kf4 {[%clk 00:13:04]} {[%emt 00:00:40]} d3 {[%clk 00:04:42]}
{[%emt 00:01:46]} 38. Ke4 {[%clk 00:07:27]} {[%emt 00:06:07]} d2 {[%clk
00:00:35]} {[%emt 00:04:37]} 39. Rxd2 {[%clk 00:06:51]} {[%emt 00:01:07]} Rxh3
{[%clk 00:00:59]} {[%emt 00:00:06]} 40. Rxd6 {[%clk 00:05:16]} {[%emt
00:02:05]} Rxb3 {[%clk 00:01:08]} {[%emt 00:00:21]} 41. Kf5 {[%clk 00:04:16]}
{[%emt 00:01:30]} Rf3+ {[%clk 00:26:05]} {[%emt 00:05:32]} 42. Ke5 {[%clk
00:34:04]} {[%emt 00:00:41]} Re3+ {[%clk 00:22:04]} {[%emt 00:04:32]} 43. Kf5
{[%clk 00:33:21]} {[%emt 00:01:12]} Rf3+ {[%clk 00:20:11]} {[%emt 00:02:25]} 44.
Ke5 {[%clk 00:33:11]} {[%emt 00:00:39]} Rf7 {[%clk 00:16:46]} {[%emt 00:03:55]}
45. a5 {[%clk 00:31:27]} {[%emt 00:02:15]} Rc7 {[%clk 00:15:26]} {[%emt
00:01:49]} 46. Kf5 {[%clk 00:29:00]} {[%emt 00:02:57]} Rc5+ {[%clk 00:13:09]}
{[%emt 00:02:48]} 47. Kf4 {[%clk 00:29:05]} {[%emt 00:00:23]} Rxa5 {[%clk
00:10:38]} {[%emt 00:03:03]} 48. Rd7+ {[%clk 00:29:21]} {[%emt 00:00:13]} Kf6
{[%clk 00:10:51]} {[%emt 00:00:16]} 49. Rxb7 {[%clk 00:29:44]} {[%emt
00:00:07]} Ra4+ {[%clk 00:10:20]} {[%emt 00:01:02]} 50. Kg3 {[%clk 00:29:33]}
{[%emt 00:00:42]} Ra1 {[%clk 00:09:59]} {[%emt 00:00:50]} 51. Kf4 {[%clk
00:26:04]} {[%emt 00:03:59]} Ra6 {[%clk 00:06:41]} {[%emt 00:03:49]} 52. Rh7
{[%clk 00:20:20]} {[%emt 00:06:13]} Kg6 {[%clk 00:06:11]} {[%emt 00:01:00]} 53.
Rc7 {[%clk 00:20:25]} {[%emt 00:00:25]} Rf6+ {[%clk 00:05:39]} {[%emt
00:01:03]} 54. Kg3 {[%clk 00:20:35]} {[%emt 00:00:19]} a6 {[%clk 00:05:17]}
{[%emt 00:00:53]} 55. Kh4 {[%clk 00:20:07]} {[%emt 00:00:58]} Rb6 {[%clk
00:05:33]} {[%emt 00:00:13]} 56. Ra7 {[%clk 00:19:28]} {[%emt 00:01:10]} Kf6
{[%clk 00:03:28]} {[%emt 00:02:35]} 57. Kh5 {[%clk 00:17:56]} {[%emt 00:02:02]}
Ke5 {[%clk 00:03:44]} {[%emt 00:00:14]} 58. Rh7 {[%clk 00:16:46]} {[%emt
00:01:40]} Kf4 {[%clk 00:03:12]} {[%emt 00:01:02]} 59. Kh4 {[%clk 00:16:14]}
{[%emt 00:01:02]} Rf6 {[%clk 00:01:58]} {[%emt 00:01:43]} 60. Ra7 {[%clk
00:13:32]} {[%emt 00:03:13]} Kf3 {[%clk 00:02:09]} {[%emt 00:00:19]} 61. Kh5
{[%clk 00:12:20]} {[%emt 00:01:42]} Rb6 {[%clk 00:02:15]} {[%emt 00:00:24]} 62.
Kh4 {[%clk 00:11:19]} {[%emt 00:01:31]} Rf6 {[%clk 00:02:09]} {[%emt 00:00:36]}
63. Kh5 {[%clk 00:10:26]} {[%emt 00:01:23]} Kg3 {[%clk 00:02:19]} {[%emt
00:00:20]} 64. g5 {[%clk 00:10:36]} {[%emt 00:00:20]} hxg5 {[%clk 00:02:13]}
{[%emt 00:00:36]} 65. Kxg5 {[%clk 00:11:03]} {[%emt 00:00:04]} Rb6 {[%clk
00:02:19]} {[%emt 00:00:22]} 66. Kf5 {[%clk 00:11:29]} {[%emt 00:00:05]} Kf3
{[%clk 00:02:26]} {[%emt 00:00:23]} 67. Ke5 {[%clk 00:11:55]} {[%emt 00:00:03]}
Ke3 {[%clk 00:02:13]} {[%emt 00:00:43]} 68. Kd5 {[%clk 00:12:22]} {[%emt
00:00:04]} Kd3 {[%clk 00:00:59]} {[%emt 00:01:44]} 69. Kc5 {[%clk 00:12:48]}
{[%emt 00:00:04]} Rh6 {[%clk 00:00:47]} {[%emt 00:00:42]} 70. Kb4 {[%clk
00:13:04]} {[%emt 00:00:14]} Kd4 {[%clk 00:00:53]} {[%emt 00:00:23]} 71. Rd7
{[%clk 00:13:27]} {[%emt 00:00:08]} Ke5 {[%clk 00:01:14]} {[%emt 00:00:09]} 72.
Ka5 {[%clk 00:13:52]} {[%emt 00:00:05]} Rg6 {[%clk 00:00:56]} {[%emt 00:00:47]}
73. Ra7 {[%clk 00:13:36]} {[%emt 00:00:47]} Kd5 {[%clk 00:01:20]} {[%emt
00:00:06]} 74. Rxa6 {[%clk 00:14:01]} {[%emt 00:00:05]} Rxa6+ {[%clk 00:01:43]}
{[%emt 00:00:06]} 75. Kxa6 {[%clk 00:14:22]} {[%emt 00:00:10]} 1/2-1/2

[Event "Schack-SM 2024: Junior-SM"]
[Site "Fortnox Arena, Hejaregatan 5, Vaxjo, Sweden"]
[Date "2024.07.05"]
[Round "7.3"]
[White "Valcu, Lavinia"]
[Black "Seo, Jung Hyun"]
[Result "1/2-1/2"]
[TimeControl "90 minutes for 40 moves + 30 minutes for the rest of the game + 30 seconds per move from move one."]
[WhiteElo "1971"]
[BlackElo "2137"]

1. d4 {[%clk 01:30:55]} {[%emt 00:00:04]} d5 {[%clk 01:29:54]} {[%emt
00:01:06]} 2. c4 {[%clk 01:31:16]} {[%emt 00:00:11]} e6 {[%clk 01:29:56]}
{[%emt 00:00:27]} 3. Nc3 {[%clk 01:31:40]} {[%emt 00:00:06]} Nf6 {[%clk
01:30:16]} {[%emt 00:00:10]} 4. Bg5 {[%clk 01:32:06]} {[%emt 00:00:04]} Be7
{[%clk 01:30:37]} {[%emt 00:00:09]} 5. e3 {[%clk 01:32:31]} {[%emt 00:00:04]}
Nbd7 {[%clk 01:31:00]} {[%emt 00:00:08]} 6. Nf3 {[%clk 01:32:56]} {[%emt
00:00:05]} h6 {[%clk 01:31:28]} {[%emt 00:00:03]} 7. Bxf6 {[%clk 01:33:17]}
{[%emt 00:00:08]} Nxf6 {[%clk 01:31:54]} {[%emt 00:00:04]} 8. c5 {[%clk
01:33:38]} {[%emt 00:00:08]} c6 {[%clk 01:27:28]} {[%emt 00:04:57]} 9. Bd3
{[%clk 01:33:40]} {[%emt 00:00:28]} b6 {[%clk 01:23:08]} {[%emt 00:04:50]} 10.
b4 {[%clk 01:33:15]} {[%emt 00:00:55]} a5 {[%clk 01:22:10]} {[%emt 00:01:29]}
11. a3 {[%clk 01:32:46]} {[%emt 00:00:58]} Ba6 {[%clk 01:12:57]} {[%emt
00:09:42]} 12. O-O {[%clk 01:32:07]} {[%emt 00:01:10]} Bxd3 {[%clk 01:13:14]}
{[%emt 00:00:14]} 13. Qxd3 {[%clk 01:32:31]} {[%emt 00:00:04]} b5 {[%clk
01:11:39]} {[%emt 00:02:06]} 14. Ne5 {[%clk 01:22:57]} {[%emt 00:10:04]} Qc7
{[%clk 01:08:37]} {[%emt 00:03:31]} 15. f4 {[%clk 01:15:01]} {[%emt 00:08:27]}
O-O {[%clk 01:05:07]} {[%emt 00:04:00]} 16. Rfb1 {[%clk 01:01:04]} {[%emt
00:14:26]} Nd7 {[%clk 00:45:15]} {[%emt 00:20:23]} 17. Nxd7 {[%clk 00:51:34]}
{[%emt 00:10:00]} Qxd7 {[%clk 00:45:43]} {[%emt 00:00:03]} 18. a4 {[%clk
00:50:15]} {[%emt 00:01:48]} axb4 {[%clk 00:37:32]} {[%emt 00:08:41]} 19. Rxb4
{[%clk 00:50:18]} {[%emt 00:00:27]} Bd8 {[%clk 00:27:31]} {[%emt 00:10:32]} 20.
Rbb1 {[%clk 00:43:52]} {[%emt 00:06:54]} bxa4 {[%clk 00:26:23]} {[%emt
00:01:39]} 21. Nxa4 {[%clk 00:42:18]} {[%emt 00:02:05]} Ra7 {[%clk 00:19:23]}
{[%emt 00:07:29]} 22. Nb6 {[%clk 00:39:49]} {[%emt 00:02:59]} Qb7 {[%clk
00:18:27]} {[%emt 00:01:25]} 23. Kf2 {[%clk 00:32:13]} {[%emt 00:08:06]} Rxa1
{[%clk 00:14:16]} {[%emt 00:04:42]} 24. Rxa1 {[%clk 00:32:26]} {[%emt
00:00:17]} Bc7 {[%clk 00:11:00]} {[%emt 00:03:46]} 25. Ra6 {[%clk 00:30:23]}
{[%emt 00:02:33]} Bxb6 {[%clk 00:10:30]} {[%emt 00:01:02]} 26. Rxb6 {[%clk
00:28:32]} {[%emt 00:02:20]} Qd7 {[%clk 00:10:45]} {[%emt 00:00:15]} 27. Qa6
{[%clk 00:27:14]} {[%emt 00:01:48]} Rc8 {[%clk 00:11:12]} {[%emt 00:00:02]} 28.
g3 {[%clk 00:25:27]} {[%emt 00:02:17]} Rc7 {[%clk 00:10:57]} {[%emt 00:00:45]}
29. Rb8+ {[%clk 00:24:25]} {[%emt 00:01:32]} Kh7 {[%clk 00:11:25]} {[%emt
00:00:02]} 30. Qa8 {[%clk 00:20:17]} {[%emt 00:04:38]} Ra7 {[%clk 00:10:31]}
{[%emt 00:01:24]} 31. Rh8+ {[%clk 00:20:15]} {[%emt 00:00:32]} Kg6 {[%clk
00:10:59]} {[%emt 00:00:03]} 32. Qc8 {[%clk 00:20:23]} {[%emt 00:00:22]} Ra2+
{[%clk 00:10:59]} {[%emt 00:00:30]} 33. Kf3 {[%clk 00:20:08]} {[%emt 00:00:42]}
Qa7 {[%clk 00:08:12]} {[%emt 00:03:19]} 34. Kg4 {[%clk 00:15:26]} {[%emt
00:05:13]} Rxh2 {[%clk 00:06:14]} {[%emt 00:02:27]} 35. f5+ {[%clk 00:15:08]}
{[%emt 00:00:47]} Kf6 {[%clk 00:06:43]} {[%emt 00:00:01]} 36. Qd8+ {[%clk
00:11:13]} {[%emt 00:04:26]} Qe7 {[%clk 00:07:13]} 37. fxe6 {[%clk 00:11:11]}
{[%emt 00:00:32]} Qxd8 {[%clk 00:07:30]} {[%emt 00:00:14]} 38. Rxd8 {[%clk
00:11:36]} {[%emt 00:00:04]} g5 {[%clk 00:06:17]} {[%emt 00:01:43]} 39. Kf3
{[%clk 00:09:28]} {[%emt 00:02:38]} fxe6 {[%clk 00:06:21]} {[%emt 00:00:27]} 40.
g4 {[%clk 00:03:31]} {[%emt 00:06:26]} Ra2 {[%clk 00:04:22]} {[%emt 00:02:29]}
41. Rd6 {[%clk 00:26:27]} {[%emt 00:07:34]} Ra6 {[%clk 00:34:44]} {[%emt
00:00:08]} 1/2-1/2

[Event "Schack-SM 2024: Junior-SM"]
[Site "Fortnox Arena, Hejaregatan 5, Vaxjo, Sweden"]
[Date "2024.07.05"]
[Round "7.4"]
[White "Grahn, Vidar"]
[Black "Frank, Anton 2006"]
[Result "1/2-1/2"]
[TimeControl "90 minutes for 40 moves + 30 minutes for the rest of the game + 30 seconds per move from move one."]
[WhiteTitle "FM"]
[WhiteElo "2264"]
[BlackElo "2131"]

1. d4 {[%clk 01:30:57]} {[%emt 00:00:04]} d5 {[%clk 01:30:18]} {[%emt
00:00:41]} 2. c4 {[%clk 01:31:21]} {[%emt 00:00:06]} e6 {[%clk 01:30:41]}
{[%emt 00:00:07]} 3. Nc3 {[%clk 01:31:46]} {[%emt 00:00:05]} c5 {[%clk
01:30:57]} {[%emt 00:00:14]} 4. cxd5 {[%clk 01:31:25]} {[%emt 00:00:51]} cxd4
{[%clk 01:31:07]} {[%emt 00:00:21]} 5. Qa4+ {[%clk 01:30:32]} {[%emt 00:01:23]}
Bd7 {[%clk 01:31:28]} {[%emt 00:00:08]} 6. Qxd4 {[%clk 01:30:56]} {[%emt
00:00:06]} exd5 {[%clk 01:31:52]} {[%emt 00:00:06]} 7. Bf4 {[%clk 01:22:25]}
{[%emt 00:09:01]} Nf6 {[%clk 01:25:06]} {[%emt 00:07:16]} 8. Bxb8 {[%clk
01:16:21]} {[%emt 00:06:34]} Rxb8 {[%clk 01:09:31]} {[%emt 00:16:05]} 9. e3
{[%clk 01:03:07]} {[%emt 00:13:43]} Be7 {[%clk 01:03:35]} {[%emt 00:06:27]} 10.
Bd3 {[%clk 00:54:32]} {[%emt 00:09:06]} O-O {[%clk 01:01:05]} {[%emt 00:02:59]}
11. Nge2 {[%clk 00:51:13]} {[%emt 00:03:49]} Bc6 {[%clk 00:31:14]} {[%emt
00:30:21]} 12. Qxa7 {[%clk 00:45:15]} {[%emt 00:06:29]} Nd7 {[%clk 00:26:19]}
{[%emt 00:05:24]} 13. Qd4 {[%clk 00:44:21]} {[%emt 00:01:24]} Bf6 {[%clk
00:25:45]} {[%emt 00:01:03]} 14. Qf4 {[%clk 00:39:21]} {[%emt 00:05:29]} Nc5
{[%clk 00:18:59]} {[%emt 00:07:17]} 15. Rd1 {[%clk 00:32:34]} {[%emt 00:07:18]}
Ne6 {[%clk 00:17:36]} {[%emt 00:01:53]} 16. Qg4 {[%clk 00:29:39]} {[%emt
00:03:25]} b5 {[%clk 00:15:42]} {[%emt 00:02:24]} 17. Nd4 {[%clk 00:25:51]}
{[%emt 00:04:18]} Nxd4 {[%clk 00:15:44]} {[%emt 00:00:28]} 18. exd4 {[%clk
00:26:08]} {[%emt 00:00:12]} Re8+ {[%clk 00:15:46]} {[%emt 00:00:28]} 19. Ne2
{[%clk 00:22:57]} {[%emt 00:03:42]} Qa5+ {[%clk 00:15:10]} {[%emt 00:01:06]} 20.
Rd2 {[%clk 00:22:19]} {[%emt 00:01:08]} g6 {[%clk 00:13:31]} {[%emt 00:02:09]}
21. Qf4 {[%clk 00:21:29]} {[%emt 00:01:18]} Bg7 {[%clk 00:12:03]} {[%emt
00:02:00]} 22. O-O {[%clk 00:20:38]} {[%emt 00:01:22]} b4 {[%clk 00:09:17]}
{[%emt 00:03:15]} 23. Rc2 {[%clk 00:17:19]} {[%emt 00:03:49]} Bb5 {[%clk
00:07:20]} {[%emt 00:02:27]} 24. Rc5 {[%clk 00:14:50]} {[%emt 00:02:59]} Qa6
{[%clk 00:07:11]} {[%emt 00:00:39]} 25. Bxb5 {[%clk 00:14:13]} {[%emt
00:01:08]} Rxb5 {[%clk 00:07:36]} {[%emt 00:00:05]} 26. Rc7 {[%clk 00:13:38]}
{[%emt 00:01:04]} Qf6 {[%clk 00:05:43]} {[%emt 00:02:23]} 27. Qd2 {[%clk
00:12:19]} {[%emt 00:01:49]} Rb6 {[%clk 00:04:32]} {[%emt 00:01:41]} 28. Rfc1
{[%clk 00:10:38]} {[%emt 00:02:10]} Rbe6 {[%clk 00:03:20]} {[%emt 00:01:43]} 29.
Rc8 {[%clk 00:10:46]} {[%emt 00:00:22]} Bf8 {[%clk 00:01:03]} {[%emt 00:02:47]}
30. Rxe8 {[%clk 00:09:18]} {[%emt 00:01:58]} Rxe8 {[%clk 00:01:32]} {[%emt
00:00:02]} 31. Ng3 {[%clk 00:08:42]} {[%emt 00:01:03]} h5 {[%clk 00:01:11]}
{[%emt 00:00:53]} 32. Nf1 {[%clk 00:08:11]} {[%emt 00:01:01]} Qa6 {[%clk
00:01:02]} {[%emt 00:00:39]} 33. b3 {[%clk 00:06:36]} {[%emt 00:02:06]} Re2
{[%clk 00:00:55]} {[%emt 00:00:36]} 34. Qf4 {[%clk 00:05:13]} {[%emt 00:01:53]}
Rxa2 {[%clk 00:00:41]} {[%emt 00:00:44]} 35. Ne3 {[%clk 00:04:31]} {[%emt
00:01:13]} Qe6 {[%clk 00:00:46]} {[%emt 00:00:25]} 36. Qf3 {[%clk 00:03:08]}
{[%emt 00:01:51]} Bh6 {[%clk 00:00:46]} {[%emt 00:00:30]} 37. Qg3 {[%clk
00:02:07]} {[%emt 00:01:31]} Bxe3 {[%clk 00:00:57]} {[%emt 00:00:20]} 38. fxe3
{[%clk 00:02:26]} {[%emt 00:00:12]} Re2 {[%clk 00:00:59]} {[%emt 00:00:28]} 39.
Re1 {[%clk 00:02:26]} {[%emt 00:00:29]} Rb2 {[%clk 00:00:52]} {[%emt 00:00:37]}
40. Qb8+ {[%clk 00:02:16]} {[%emt 00:00:40]} Kg7 {[%clk 00:00:58]} {[%emt
00:00:23]} 41. Qf4 {[%clk 00:26:22]} {[%emt 00:06:24]} Rxb3 {[%clk 00:29:28]}
{[%emt 00:02:01]} 42. h3 {[%clk 00:25:35]} {[%emt 00:01:17]} Rb2 {[%clk
00:25:48]} {[%emt 00:04:10]} 43. Kh2 {[%clk 00:18:59]} {[%emt 00:07:05]} b3
{[%clk 00:22:33]} {[%emt 00:03:46]} 44. e4 {[%clk 00:18:39]} {[%emt 00:00:50]}
dxe4 {[%clk 00:21:08]} {[%emt 00:01:55]} 45. Rxe4 {[%clk 00:18:56]} {[%emt
00:00:13]} Qf6 {[%clk 00:21:32]} {[%emt 00:00:06]} 46. Qg3 {[%clk 00:16:15]}
{[%emt 00:03:11]} Rb1 {[%clk 00:18:37]} {[%emt 00:03:25]} 47. Qd3 {[%clk
00:13:23]} {[%emt 00:03:22]} Qd6+ {[%clk 00:14:51]} {[%emt 00:04:16]} 48. Re5
{[%clk 00:12:38]} {[%emt 00:01:15]} f6 {[%clk 00:09:29]} {[%emt 00:05:51]} 49.
Qxb1 {[%emt 00:00:09]} fxe5 {[%clk 00:09:55]} {[%emt 00:00:04]} 50. Qxb3 {[%clk
00:13:19]} {[%emt 00:00:11]} exd4+ {[%clk 00:10:17]} {[%emt 00:00:07]} 51. Qg3
{[%clk 00:13:35]} {[%emt 00:00:15]} Qd7 {[%clk 00:05:43]} {[%emt 00:05:04]} 52.
Qd3 {[%clk 00:13:27]} {[%emt 00:00:37]} Qd5 {[%clk 00:05:19]} {[%emt 00:00:55]}
53. Kh1 {[%clk 00:11:10]} {[%emt 00:02:47]} Qe5 {[%clk 00:05:29]} {[%emt
00:00:20]} 54. Qc4 {[%clk 00:09:51]} {[%emt 00:01:48]} Kf6 {[%clk 00:02:34]}
{[%emt 00:03:25]} 55. Qc6+ {[%clk 00:09:07]} {[%emt 00:01:15]} Kg5 {[%clk
00:02:34]} {[%emt 00:00:30]} 56. h4+ {[%clk 00:08:00]} {[%emt 00:01:36]} Kf5
{[%clk 00:01:33]} {[%emt 00:01:31]} 57. Qd7+ {[%clk 00:07:23]} {[%emt
00:01:07]} Ke4 {[%clk 00:01:11]} {[%emt 00:00:52]} 58. Qc6+ {[%clk 00:06:42]}
{[%emt 00:01:12]} Kd3 {[%clk 00:01:00]} {[%emt 00:00:40]} 59. Qxg6+ {[%clk
00:06:59]} {[%emt 00:00:13]} Kc3 {[%clk 00:00:56]} {[%emt 00:00:34]} 60. Qc6+
{[%clk 00:07:12]} {[%emt 00:00:18]} Kd2 {[%clk 00:01:19]} {[%emt 00:00:07]} 61.
Qh6+ {[%clk 00:07:10]} {[%emt 00:00:27]} Kd1 {[%clk 00:00:43]} {[%emt
00:01:10]} 62. Qg5 {[%clk 00:07:13]} {[%emt 00:00:27]} Qe1 {[%clk 00:01:09]}
{[%emt 00:00:05]} 63. Kh2 {[%clk 00:07:39]} {[%emt 00:00:03]} Qe2 {[%clk
00:01:19]} {[%emt 00:00:20]} 64. Qa5 {[%clk 00:07:04]} {[%emt 00:01:04]} d3
{[%clk 00:00:43]} {[%emt 00:01:08]} 65. Qa1+ {[%clk 00:07:27]} {[%emt
00:00:06]} Kd2 {[%clk 00:01:07]} {[%emt 00:00:07]} 66. Qb2+ {[%clk 00:06:20]}
{[%emt 00:01:36]} Kd1 {[%clk 00:01:03]} {[%emt 00:00:35]} 67. Qb1+ {[%clk
00:06:44]} {[%emt 00:00:06]} Kd2 {[%clk 00:01:30]} {[%emt 00:00:04]} 68. Qb2+
{[%clk 00:07:09]} {[%emt 00:00:04]} Ke1 {[%clk 00:01:03]} {[%emt 00:00:56]} 69.
Qc1+ {[%clk 00:07:28]} {[%emt 00:00:11]} Qd1 {[%clk 00:01:09]} {[%emt
00:00:24]} 70. Qe3+ {[%clk 00:07:30]} {[%emt 00:00:28]} Kf1 {[%clk 00:01:18]}
{[%emt 00:00:21]} 71. Qf4+ {[%clk 00:07:27]} {[%emt 00:00:33]} Ke2 {[%clk
00:01:31]} {[%emt 00:00:18]} 72. Qe4+ {[%clk 00:06:17]} {[%emt 00:01:38]} Kd2
{[%clk 00:01:55]} {[%emt 00:00:07]} 73. Qb4+ {[%clk 00:06:40]} {[%emt
00:00:06]} Ke3 {[%clk 00:01:25]} {[%emt 00:01:02]} 74. Qc5+ {[%clk 00:06:41]}
{[%emt 00:00:29]} Ke4 {[%clk 00:00:34]} {[%emt 00:01:19]} 75. Qc4+ {[%clk
00:06:59]} {[%emt 00:00:13]} Ke3 {[%clk 00:00:45]} {[%emt 00:00:20]} 76. Qc5+
{[%clk 00:07:24]} {[%emt 00:00:05]} Kd2 {[%clk 00:00:41]} {[%emt 00:00:34]} 77.
Qb4+ {[%clk 00:07:46]} {[%emt 00:00:07]} Ke2 {[%clk 00:00:46]} {[%emt
00:00:25]} 78. Qe4+ {[%clk 00:08:07]} {[%emt 00:00:09]} Kf1 {[%clk 00:01:01]}
{[%emt 00:00:15]} 79. Qf4+ {[%clk 00:08:29]} {[%emt 00:00:08]} Ke1 {[%clk
00:01:25]} {[%emt 00:00:06]} 80. Qe3+ {[%clk 00:08:40]} {[%emt 00:00:19]} Qe2
{[%clk 00:01:49]} {[%emt 00:00:07]} 81. Qc1+ {[%clk 00:09:04]} {[%emt
00:00:05]} Kf2 {[%clk 00:00:50]} {[%emt 00:01:29]} 82. Qf4+ {[%clk 00:09:30]}
{[%emt 00:00:04]} Ke1 {[%clk 00:01:13]} {[%emt 00:00:07]} 83. Qc1+ {[%clk
00:09:57]} {[%emt 00:00:04]} 1/2-1/2